bitfinex-derivatives/quotes_BTCF0:USTF0_20251002
["timestamp","ask_amount","ask_price","bid_price","bid_amount"]
[1759434664564,1.1942523,120730.0,120720.0,0.83624769]
[1759434664762,1.1942523,120730.0,120720.0,0.5185587]
[1759434665179,0.4435723,120730.0,120720.0,0.5185587]
[1759434665472,1.1942523,120730.0,120720.0,0.5185587]
[1759434666568,1.1942523,120730.0,120720.0,0.43578]
[1759434666774,1.51194129,120730.0,120720.0,0.01358]
[1759434666969,1.51194129,120730.0,120710.0,0.03578]
[1759434666970,0.0827792,120720.0,120710.0,0.03578]
[1759434667177,1.07895718,120720.0,120710.0,0.01358]
[1759434667474,0.76126819,120720.0,120710.0,0.01358]
[1759434668777,1.07895718,120720.0,120710.0,0.01358]
[1759434669473,0.4435766,120730.0,120720.0,0.1185592]
[1759434669669,0.3608,120730.0,120720.0,0.43624819]
[1759434669875,1.11188,120730.0,120720.0,0.43624819]
[1759434670573,1.11188,120730.0,120720.0,0.1185592]
[1759434670776,0.7636883,120740.0,120720.0,0.1185592]
[1759434670777,0.44599931,120740.0,120730.0,0.1185523]
[1759434670974,0.36089851,120740.0,120730.0,0.43624129]
[1759434671276,1.19486401,120740.0,120730.0,0.1185523]
[1759434671468,1.512553,120740.0,120730.0,0.03578]
[1759434671669,1.512553,120740.0,120730.0,0.01358]
[1759434671868,0.761353,120740.0,120730.0,0.1185523]
[1759434672066,1.513233,120740.0,120730.0,0.1185523]
[1759434672977,0.761353,120740.0,120730.0,0.1185523]
[1759434673174,1.513153,120740.0,120730.0,0.1185523]
[1759434673371,1.11269851,120740.0,120730.0,0.1185523]
[1759434673572,0.44366391,120740.0,120730.0,0.1185523]
[1759434673768,0.36089851,120740.0,120730.0,0.83624129]
[1759434673978,1.11281851,120740.0,120730.0,0.83624129]
[1759434674179,1.19558391,120740.0,120730.0,0.5185523]
[1759434674677,1.5132729,120740.0,120730.0,0.43578]
[1759434674885,1.5132729,120740.0,120730.0,0.01358]
[1759434675576,1.53615827,120740.0,120730.0,0.01358]
[1759434677382,1.53615827,120740.0,120730.0,0.03578]
[1759434677790,0.0827723,120730.0,120720.0,0.01358]
[1759434678082,0.76126129,120730.0,120720.0,0.01358]
[1759434678284,0.76126129,120730.0,120720.0,0.0963592]
[1759434678484,0.4435723,120730.0,120720.0,0.1185592]
[1759434678685,1.1954523,120730.0,120720.0,0.1185592]
[1759434678884,1.51314129,120730.0,120720.0,0.1185592]
[1759434679879,1.1954523,120730.0,120720.0,0.1185592]
[1759434680179,1.51314129,120730.0,120720.0,0.1185592]
[1759434680380,1.51314129,120730.0,120720.0,0.0963592]
[1759434680580,1.51314129,120730.0,120720.0,0.1185592]
[1759434681087,1.53606995,120730.0,120720.0,0.1185592]
[1759434682088,0.78418995,120730.0,120720.0,0.1185592]
[1759434682389,1.21822096,120730.0,120720.0,0.43624819]
[1759434683886,1.21822096,120730.0,120720.0,0.1185592]
[1759434684086,1.53590995,120730.0,120720.0,0.1185592]
[1759434684493,1.53590995,120730.0,120720.0,0.01358]
[1759434684687,0.0827792,120720.0,120710.0,0.01358]
[1759434684998,0.78419685,120720.0,120710.0,0.01358]
[1759434685191,1.53599685,120720.0,120710.0,0.117796]
[1759434685492,1.53599685,120720.0,120710.0,0.03501]
[1759434686787,0.78419685,120720.0,120710.0,0.117796]
[1759434686995,1.53599685,120720.0,120710.0,0.117796]
[1759434687286,1.55828041,120720.0,120710.0,0.117796]
[1759434687489,1.55828041,120720.0,120710.0,0.03501]
[1759434687790,0.80648041,120720.0,120710.0,0.03584]
[1759434687992,0.80648041,120720.0,120710.0,0.118626]
[1759434688191,1.55824041,120720.0,120710.0,0.118626]
[1759434689187,0.80648041,120720.0,120710.0,0.118626]
[1759434689392,1.24051142,120720.0,120710.0,0.118626]
[1759434689588,1.55820041,120720.0,120710.0,0.118626]
[1759434689788,1.55820041,120720.0,120710.0,0.03584]
[1759434689985,1.55820041,120720.0,120710.0,0.118626]
[1759434690188,1.55812041,120720.0,120710.0,0.118626]
[1759434691384,0.04521222,120720.0,120710.0,0.83631499]
[1759434691589,0.02292866,120720.0,120710.0,1.19711499]
[1759434691791,0.02292866,120720.0,120710.0,1.51480398]
[1759434691992,0.41285142,120740.0,120730.0,0.1183923]
[1759434692187,0.41285142,120740.0,120730.0,0.43608129]
[1759434692188,0.78687207,120740.0,120730.0,0.43608129]
[1759434692490,0.75205851,120740.0,120730.0,0.43608129]
[1759434692696,1.5258429,120740.0,120730.0,0.1183923]
[1759434692993,0.0953023,120730.0,120720.0,0.118393]
[1759434693293,0.0953023,120730.0,120720.0,0.43608199]
[1759434693294,1.2086223,120730.0,120720.0,0.43608199]
[1759434694392,1.2086223,120730.0,120720.0,0.118393]
[1759434696890,0.4561023,120730.0,120720.0,0.118393]
[1759434697187,1.2085823,120730.0,120720.0,0.118393]
[1759434698091,0.37333,120730.0,120720.0,0.46408663]
[1759434698396,1.11324,120730.0,120720.0,0.91603479]
[1759434699099,1.1960123,120730.0,120720.0,0.91603479]
[1759434699299,1.11324,120730.0,120720.0,0.91603479]
[1759434699804,1.12577,120730.0,120720.0,0.91603479]
[1759434700096,0.76497,120730.0,120720.0,0.91603479]
[1759434700301,0.76497,120730.0,120720.0,0.118393]
[1759434700600,1.12577,120730.0,120720.0,0.118393]
[1759434702095,1.52341179,120730.0,120720.0,0.082773]
[1759434702503,1.52341179,120730.0,120720.0,0.118393]
[1759434703107,1.12577,120730.0,120720.0,0.118393]
[1759434703403,1.12573,120730.0,120720.0,0.118393]
[1759434705105,1.2085023,120730.0,120720.0,0.118393]
[1759434706600,0.4561023,120730.0,120720.0,0.118393]
[1759434706804,1.2083823,120730.0,120720.0,0.118393]
[1759434707298,0.4561023,120730.0,120720.0,0.118393]
[1759434707494,1.2083823,120730.0,120720.0,0.118393]
[1759434707909,0.4561023,120730.0,120720.0,0.118393]
[1759434708102,0.4561023,120730.0,120720.0,0.51603479]
[1759434708303,1.12553,120730.0,120720.0,0.51603479]
[1759434708705,0.37333,120730.0,120720.0,0.51603479]
[1759434709014,1.12549,120730.0,120720.0,0.51603479]
[1759434709307,1.2082623,120730.0,120720.0,0.57551839]
[1759434709506,1.60590409,120730.0,120720.0,0.118393]
[1759434709706,1.60590409,120730.0,120720.0,0.082773]
[1759434710107,1.2082623,120730.0,120720.0,0.118393]
[1759434710307,1.2085823,120730.0,120720.0,0.51603479]
[1759434710609,1.2085823,120730.0,120720.0,0.1778766]
[1759434713813,1.2083823,120730.0,120720.0,0.1778766]
[1759434714108,0.85374409,120730.0,120720.0,0.1778766]
[1759434714714,1.2083423,120730.0,120720.0,0.1778766]
[1759434715506,0.4561023,120730.0,120720.0,0.1778766]
[1759434715711,1.12549,120730.0,120720.0,0.1778766]
[1759434716411,1.44371378,120730.0,120720.0,0.1778766]
[1759434716712,1.52648608,120730.0,120720.0,0.1778766]
[1759434717108,1.52648608,120730.0,120720.0,0.49610038]
[1759434718310,1.44371378,120730.0,120720.0,0.49610038]
[1759434718506,0.37333,120730.0,120720.0,0.81432416]
[1759434718709,1.44371378,120730.0,120720.0,0.89610038]
[1759434718912,0.69155378,120730.0,120720.0,0.89610038]
[1759434719117,1.44371378,120730.0,120720.0,0.89610038]
[1759434719308,0.69155378,120730.0,120720.0,0.89610038]
[1759434719515,1.44375378,120730.0,120720.0,0.89610038]
[1759434719817,0.69155378,120730.0,120720.0,0.89610038]
[1759434720010,1.12553,120730.0,120720.0,0.89610038]
[1759434720210,0.33075378,120730.0,120720.0,0.89610038]
[1759434720414,1.08295378,120730.0,120720.0,0.89610038]
[1759434720714,0.01253,120730.0,120720.0,0.518393]
[1759434720915,1.08287378,120730.0,120720.0,0.83661678]
[1759434721111,1.44367378,120730.0,120720.0,0.83661678]
[1759434721508,1.44367378,120730.0,120720.0,0.518393]
[1759434722714,1.12545,120730.0,120720.0,0.518393]
[1759434722917,1.44367378,120730.0,120720.0,0.83661678]
[1759434723214,1.44367378,120730.0,120720.0,0.518393]
[1759434724515,1.44367378,120730.0,120720.0,0.59275167]
[1759434724717,1.44367378,120730.0,120720.0,0.518393]
[1759434727319,0.69155378,120730.0,120720.0,0.57798901]
[1759434727512,1.44339378,120730.0,120720.0,0.57798901]
[1759434728619,0.69155378,120730.0,120720.0,0.57798901]
[1759434729020,1.44327378,120730.0,120720.0,0.89621279]
[1759434729419,0.69155378,120730.0,120720.0,0.89621279]
[1759434729621,1.44327378,120730.0,120720.0,0.89621279]
[1759434730116,1.44327378,120730.0,120720.0,0.83661678]
[1759434730416,9.851e-05,120740.0,120730.0,0.1183123]
[1759434730621,0.75193851,120740.0,120730.0,0.49613114]
[1759434730812,1.08269229,120740.0,120730.0,0.49613114]
[1759434731213,0.76446851,120740.0,120730.0,0.17790736]
[1759434731411,1.08269229,120740.0,120730.0,0.50456542]
[1759434731820,0.76446851,120740.0,120730.0,0.50456542]
[1759434732023,1.08269229,120740.0,120730.0,0.50456542]
[1759434733118,1.08269229,120740.0,120730.0,0.18634164]
[1759434733322,1.08269229,120740.0,120730.0,0.50456542]
[1759434735426,1.40091607,120740.0,120730.0,0.18634164]
[1759434735724,1.40091607,120740.0,120730.0,0.50456542]
[1759434735920,1.08269229,120740.0,120730.0,0.50456542]
[1759434737225,0.33085229,120740.0,120730.0,0.50456542]
[1759434737526,1.08261229,120740.0,120730.0,0.50456542]
[1759434737727,1.08261229,120740.0,120730.0,0.44497036]
[1759434738624,1.08261229,120740.0,120730.0,0.50451533]
[1759434739924,1.08249229,120740.0,120730.0,0.50451533]
[1759434740624,0.76426851,120740.0,120730.0,0.50451533]
[1759434740827,1.08249229,120740.0,120730.0,0.50451533]
[1759434742024,1.16525769,120740.0,120730.0,0.50451533]
[1759434742227,1.16525769,120740.0,120730.0,0.44497036]
[1759434745528,1.16525769,120740.0,120730.0,0.51932903]
[1759434746224,1.60783391,120740.0,120730.0,0.0966423]
[1759434746429,1.60783391,120740.0,120730.0,0.15618347]
[1759434746430,2.24428147,120740.0,120730.0,0.15618347]
[1759434746728,1.60783391,120740.0,120730.0,0.17762347]
[1759434746927,2.24428147,120740.0,120730.0,0.17762347]
[1759434747128,2.24392147,120740.0,120730.0,0.17762347]
[1759434747325,1.49264147,120740.0,120730.0,0.17762347]
[1759434747628,2.24416147,120740.0,120730.0,0.49584725]
[1759434748417,1.92593769,120740.0,120730.0,0.49584725]
[1759434748818,2.24416147,120740.0,120730.0,0.49584725]
[1759434749027,1.49264147,120740.0,120730.0,0.49584725]
[1759434749226,1.92581769,120740.0,120730.0,0.17762347]
[1759434749527,1.92581769,120740.0,120730.0,0.49584725]
[1759434750126,1.56501769,120740.0,120730.0,0.49584725]
[1759434750331,1.92581769,120740.0,120730.0,0.1180823]
[1759434750527,1.92581769,120740.0,120730.0,0.43630608]
[1759434750926,2.24404147,120740.0,120730.0,0.49585861]
[1759434751433,2.24404147,120740.0,120730.0,0.50416726]
[1759434752232,2.24396147,120740.0,120730.0,0.50416726]
[1759434752533,1.92573769,120740.0,120730.0,0.50416726]
[1759434753236,0.85619391,120740.0,120730.0,0.50416726]
[1759434753428,1.92561769,120740.0,120730.0,0.50416726]
[1759434754237,0.37342851,120740.0,120730.0,0.50416726]
[1759434754438,1.12458851,120740.0,120730.0,0.50416726]
[1759434754633,1.08201229,120740.0,120730.0,0.50416726]
[1759434754832,1.44281229,120740.0,120730.0,0.50416726]
[1759434755930,1.52557769,120740.0,120730.0,0.50416726]
[1759434756540,1.52557769,120740.0,120730.0,0.49585861]
[1759434756946,1.84380147,120740.0,120730.0,0.49585861]
[1759434757145,1.52557769,120740.0,120730.0,0.49585861]
[1759434758050,1.44281229,120740.0,120730.0,0.49585861]
[1759434758245,1.08201229,120740.0,120730.0,0.43630608]
[1759434758548,1.44281229,120740.0,120730.0,0.44477271]
[1759434759143,1.52557769,120740.0,120730.0,0.51913138]
[1759434759342,1.52557769,120740.0,120730.0,0.44477271]
[1759434759545,1.84380147,120740.0,120730.0,0.43630608]
[1759434760250,1.52551528,120740.0,120730.0,0.1180823]
[1759434762647,1.20735391,120740.0,120730.0,0.1180823]
[1759434762848,1.52551528,120740.0,120730.0,0.1180823]
[1759434763343,1.52551528,120740.0,120730.0,0.0827723]
[1759434763649,1.52551528,120740.0,120730.0,0.1172023]
[1759434763949,1.51205923,120740.0,120730.0,0.1172023]
[1759434764145,0.76172677,120740.0,120730.0,0.1172023]
[1759434764345,1.51276677,120740.0,120730.0,0.1172023]
[1759434764853,1.1946054,120740.0,120730.0,0.1172023]
[1759434766152,1.51276677,120740.0,120730.0,0.1172023]
[1759434770555,1.11184,120740.0,120730.0,0.1172023]
[1759434770853,0.8338054,120740.0,120730.0,0.43536367]
[1759434771055,1.1946054,120740.0,120730.0,0.43536367]
[1759434771255,1.51276677,120740.0,120730.0,0.1172023]
[1759434772653,1.51276677,120740.0,120730.0,0.19156097]
[1759434772847,1.51276677,120740.0,120730.0,0.1172023]
[1759434773155,1.15196677,120740.0,120730.0,0.1172023]
[1759434774261,0.3608,120750.0,120730.0,0.1172023]
[1759434774262,0.76172507,120750.0,120740.0,0.1171954]
[1759434774560,1.51276507,120750.0,120740.0,0.1171954]
[1759434777055,1.83092644,120750.0,120740.0,0.0957554]
[1759434778365,1.51276507,120750.0,120740.0,0.1185054]
[1759434780251,0.76172507,120750.0,120740.0,0.1185054]
[1759434780458,1.51276507,120750.0,120740.0,0.1185054]
[1759434782161,1.53487207,120750.0,120740.0,0.1185054]
[1759434784662,1.53487207,120750.0,120740.0,0.0827654]
[1759434784860,1.85303344,120750.0,120740.0,0.0827654]
[1759434785764,1.85303344,120750.0,120740.0,0.0964154]
[1759434785966,1.53487207,120750.0,120740.0,0.0964154]
[1759434786467,1.53487207,120750.0,120740.0,0.0827654]
[1759434786662,1.51276507,120750.0,120740.0,0.0827654]
[1759434786862,1.51276507,120750.0,120740.0,0.0964154]
[1759434787165,1.51276507,120750.0,120740.0,0.1191654]
[1759434788471,0.76172507,120750.0,120740.0,0.1191654]
[1759434788674,1.51272507,120750.0,120740.0,0.1191654]
[1759434790567,0.76172507,120750.0,120740.0,0.1191654]
[1759434790771,1.51272507,120750.0,120740.0,0.1191654]
[1759434797578,1.83088644,120750.0,120740.0,0.1191654]
[1759434798980,0.0827654,120740.0,120730.0,0.1185073]
[1759434799184,0.76172677,120740.0,120730.0,0.1185073]
[1759434801787,0.76172677,120740.0,120730.0,0.0957573]
[1759434801982,1.47988814,120740.0,120720.0,0.10431772]
[1759434802187,1.42992137,120730.0,120720.0,0.10431772]
[1759434802583,1.42992137,120730.0,120720.0,0.12706772]
[1759434803186,1.42992137,120730.0,120720.0,0.10431772]
[1759434803686,1.42992137,120730.0,120720.0,0.12706772]
[1759434804084,1.51269367,120730.0,120720.0,0.00817902]
[1759434804292,0.0827791,120720.0,120710.0,0.16329871]
[1759434804489,0.40094047,120720.0,120710.0,0.18584871]
[1759434804688,0.0827791,120720.0,120710.0,0.18584871]
[1759434804889,0.40094047,120720.0,120710.0,0.18584871]
[1759434805695,0.40094047,120720.0,120710.0,0.118912]
[1759434806494,1.15190047,120720.0,120710.0,0.118912]
[1759434806790,0.0827791,120720.0,120710.0,0.118912]
[1759434806996,0.8337791,120720.0,120710.0,0.118912]
[1759434807195,0.76174027,120730.0,120720.0,0.1176791]
[1759434807397,1.51274027,120730.0,120720.0,0.1176791]
[1759434807597,0.4435789,120730.0,120720.0,0.1176791]
[1759434807797,1.51274027,120730.0,120720.0,0.1176791]
[1759434807999,0.31816137,120730.0,120720.0,0.1176791]
[1759434808193,0.4435716,120740.0,120730.0,0.1176723]
[1759434808397,1.1945316,120740.0,120730.0,0.43583367]
[1759434808697,0.4435716,120740.0,120730.0,0.43583367]
[1759434808999,1.1945716,120740.0,120730.0,0.1176723]
[1759434809598,1.51273297,120740.0,120730.0,0.1176723]
[1759434809798,1.51273297,120740.0,120730.0,0.0349]
[1759434813099,1.51273297,120740.0,120730.0,0.1176723]
[1759434816401,1.51273297,120740.0,120730.0,0.0349]
[1759434816600,1.51273297,120740.0,120730.0,0.0960523]
[1759434819398,1.91273297,120740.0,120720.0,0.1176733]
[1759434819593,0.67896137,120730.0,120720.0,0.1176733]
[1759434819798,1.42992137,120730.0,120720.0,0.1176733]
[1759434822006,1.51269367,120730.0,120720.0,0.1176733]
[1759434822407,1.51278443,120730.0,120720.0,0.1176733]
[1759434824806,1.83103656,120730.0,120720.0,0.0960591]
[1759434825907,1.08007656,120730.0,120720.0,0.0960591]
[1759434826111,1.51278443,120730.0,120720.0,0.0960591]
[1759434826312,1.51278443,120730.0,120720.0,0.1176791]
[1759434827410,1.83103656,120730.0,120720.0,0.1176791]
[1759434830610,1.08007656,120730.0,120720.0,0.0960591]
[1759434831013,1.83099656,120730.0,120720.0,0.1176791]
[1759434832512,1.08007656,120730.0,120720.0,0.1176791]
[1759434832714,1.83099656,120730.0,120720.0,0.1176791]
[1759434833407,1.83099656,120730.0,120720.0,0.0960591]
[1759434834811,1.83941487,120730.0,120720.0,0.0960591]
[1759434835012,1.08007656,120730.0,120720.0,0.0960591]
[1759434835214,0.4435694,120740.0,120720.0,0.1176791]
[1759434835511,0.40102153,120740.0,120730.0,0.1176723]
[1759434835713,1.83099366,120740.0,120730.0,0.1176723]
[1759434840117,1.08007366,120740.0,120730.0,0.1176723]
[1759434840415,0.67905213,120750.0,120740.0,0.1181054]
[1759434840613,1.42993213,120750.0,120740.0,0.43635753]
[1759434840813,1.51269073,120750.0,120740.0,0.1181054]
[1759434841611,0.76181073,120750.0,120740.0,0.1181054]
[1759434841811,1.51269073,120750.0,120740.0,0.1181054]
[1759434845619,0.76181073,120750.0,120740.0,0.1181054]
[1759434845818,1.51265073,120750.0,120740.0,0.1181054]
[1759434846118,1.51265073,120750.0,120740.0,0.43635753]
[1759434846418,1.51265073,120750.0,120740.0,0.1181054]
[1759434848218,1.51265073,120750.0,120740.0,0.43635753]
[1759434848415,0.3608,120750.0,120740.0,0.43635753]
[1759434848619,1.09036,120770.0,120760.0,0.1180917]
[1759434848917,1.40861213,120770.0,120760.0,0.1180917]
[1759434849115,1.40861213,120770.0,120760.0,0.43634383]
[1759434849821,1.40861213,120770.0,120760.0,0.50178331]
[1759434850418,1.42985213,120770.0,120760.0,0.50178331]
[1759434850816,1.06905213,120770.0,120760.0,0.50178331]
[1759434851020,1.06901213,120770.0,120760.0,0.50178331]
[1759434852922,1.06901213,120770.0,120760.0,0.18353118]
[1759434853122,1.06901213,120770.0,120760.0,0.50178331]
[1759434853325,0.75076,120770.0,120760.0,0.50178331]
[1759434853524,1.06901213,120770.0,120760.0,0.50178331]
[1759434854133,1.06901213,120770.0,120760.0,0.1180917]
[1759434854426,1.42981213,120770.0,120760.0,0.1180917]
[1759434854629,1.42981213,120770.0,120760.0,0.43634383]
[1759434855123,0.67905213,120780.0,120770.0,0.0827448]
[1759434855328,1.74802426,120780.0,120770.0,0.1180848]
[1759434858122,0.0827449,120770.0,120760.0,0.0138]
[1759434858322,0.0827449,120770.0,120750.0,0.0138]
[1759434858323,0.0827517,120760.0,120750.0,0.0138]
[1759434858629,1.85004985,120760.0,120750.0,0.0827586]
[1759434859225,1.85004985,120760.0,120740.0,0.18294865]
[1759434859529,0.67905213,120750.0,120740.0,0.18294865]
[1759434860024,0.99730426,120750.0,120740.0,0.1181008]
[1759434860228,0.99730426,120750.0,120740.0,0.0965608]
[1759434860427,0.67905213,120750.0,120740.0,0.0965608]
[1759434860621,1.42969213,120750.0,120740.0,0.0965608]
[1759434860821,1.42969213,120750.0,120740.0,0.03534]
[1759434860822,1.74794426,120750.0,120740.0,0.03534]
[1759434861024,1.74794426,120750.0,120730.0,0.0965694]
[1759434861025,0.0827654,120740.0,120730.0,0.0965694]
[1759434861327,0.71926966,120740.0,120730.0,0.0965694]
[1759434861633,1.08006966,120740.0,120730.0,0.1181094]
[1759434862526,1.83070966,120740.0,120730.0,0.1181094]
[1759434862933,1.08006966,120740.0,120730.0,0.1181094]
[1759434863128,1.83070966,120740.0,120730.0,0.1181094]
[1759434865532,1.08006966,120740.0,120730.0,0.1181094]
[1759434865733,1.83074966,120740.0,120730.0,0.1181094]
[1759434865933,1.08006966,120740.0,120730.0,0.1181094]
[1759434866428,0.4435627,120750.0,120740.0,0.1169554]
[1759434866628,1.51249483,120750.0,120740.0,0.43520753]
[1759434866836,1.51249483,120750.0,120740.0,0.1169554]
[1759434867427,1.83074696,120750.0,120740.0,0.01303]
[1759434867638,0.0827654,120740.0,120730.0,0.1177271]
[1759434867834,1.08006966,120740.0,120730.0,0.1177271]
[1759434870439,1.51249753,120740.0,120730.0,0.43597923]
[1759434870738,1.83074966,120740.0,120730.0,0.01303]
[1759434871237,1.83074966,120740.0,120730.0,0.0958023]
[1759434873137,0.0827723,120730.0,120720.0,0.1177348]
[1759434873341,0.40102443,120730.0,120720.0,0.1177348]
[1759434875325,1.15174443,120730.0,120720.0,0.1177348]
[1759434876636,0.40102443,120730.0,120720.0,0.43598693]
[1759434876835,1.06897213,120730.0,120720.0,0.43598693]
[1759434877032,1.15174443,120730.0,120720.0,0.1177348]
[1759434877239,0.8334923,120730.0,120720.0,0.43598693]
[1759434877538,1.15174443,120730.0,120720.0,0.43598693]
[1759434880136,1.51254443,120730.0,120720.0,0.1177348]
[1759434880337,1.74802426,120730.0,120710.0,0.18306992]
[1759434880545,0.99730426,120720.0,120710.0,0.1177424]
[1759434882142,1.08008336,120720.0,120710.0,0.1177424]
[1759434883834,1.1942991,120720.0,120710.0,0.1177424]
[1759434884035,1.83080336,120720.0,120710.0,0.0138]
[1759434884240,0.082786,120710.0,120700.0,0.12543328]
[1759434884443,0.40113142,120710.0,120700.0,0.12543328]
[1759434884646,0.40113142,120710.0,120700.0,0.1169806]
[1759434884844,0.40113142,120710.0,120700.0,0.0958206]
[1759434885050,0.40113142,120710.0,120700.0,0.1169806]
[1759434885540,0.0827928,120700.0,120690.0,0.19134387]
[1759434885742,1.51265822,120700.0,120690.0,0.1169852]
[1759434885941,1.51265822,120700.0,120690.0,0.0958252]
[1759434886542,1.51265822,120700.0,120690.0,0.01303]
[1759434886846,0.0827997,120690.0,120680.0,0.1169916]
[1759434887046,0.70602971,120690.0,120680.0,0.1169916]
[1759434887348,0.38768429,120690.0,120680.0,0.1169916]
[1759434887745,0.31834542,120690.0,120680.0,0.1169916]
[1759434887942,1.06910542,120690.0,120680.0,0.1169916]
[1759434888247,1.15190512,120690.0,120680.0,0.1169916]
[1759434889741,1.15194512,120690.0,120680.0,0.1169916]
[1759434892652,0.40114512,120690.0,120680.0,0.1169916]
[1759434892847,1.15198512,120690.0,120680.0,0.1169916]
[1759434893047,0.40114512,120690.0,120680.0,0.1169916]
[1759434893239,1.15198512,120690.0,120680.0,0.1169916]
[1759434896453,0.8336397,120690.0,120680.0,0.1169916]
[1759434896752,1.15198512,120690.0,120680.0,0.1169916]
[1759434897851,1.51278512,120690.0,120680.0,0.03419]
[1759434898048,0.76194512,120690.0,120680.0,0.1169966]
[1759434898352,1.51282512,120690.0,120680.0,0.1169966]
[1759434900351,0.0828065,120680.0,120670.0,0.00066117]
[1759434900553,0.0828271,120650.0,120640.0,0.37426]
[1759434900853,1.51337252,120650.0,120630.0,0.1173865]
[1759434901055,0.31834542,120640.0,120630.0,0.1173865]
[1759434901251,2.6950271,120650.0,120630.0,0.12581521]
[1759434901449,2.6950271,120650.0,120640.0,0.01346]
[1759434901649,2.26197252,120650.0,120640.0,0.117384]
[1759434901851,1.81840659,120650.0,120640.0,0.117384]
[1759434902045,2.56976659,120650.0,120640.0,0.478184]
[1759434902250,1.50006117,120650.0,120640.0,0.117384]
[1759434902450,3.01339369,120650.0,120640.0,0.01346]
[1759434902646,2.69504827,120650.0,120630.0,0.12581861]
[1759434902851,0.75176,120640.0,120630.0,0.1173899]
[1759434903052,1.94368827,120650.0,120640.0,0.03455]
[1759434903247,3.01375369,120650.0,120640.0,0.01346]
[1759434903659,1.19540827,120650.0,120640.0,0.01346]
[1759434903860,1.51375369,120650.0,120640.0,0.01346]
[1759434904055,0.082834,120640.0,120620.0,0.01346]
[1759434904353,0.0828477,120620.0,120610.0,0.03455]
[1759434904557,0.76199312,120620.0,120610.0,0.01346]
[1759434904955,0.76199312,120620.0,120610.0,0.1174046]
[1759434905254,1.51395312,120620.0,120610.0,0.1174046]
[1759434906160,1.51391312,120620.0,120610.0,0.1174046]
[1759434906355,0.75192,120620.0,120610.0,0.1174046]
[1759434906556,0.76198992,120630.0,120610.0,1.19654382]
[1759434906764,0.75192,120620.0,120610.0,0.79255002]
[1759434906948,0.76199052,120630.0,120610.0,0.1134046]
[1759434907261,0.76198632,120630.0,120620.0,0.03455]
[1759434907454,1.51422632,120630.0,120620.0,0.03455]
[1759434907656,1.51426632,120630.0,120620.0,0.1173977]
[1759434908157,1.51426632,120630.0,120620.0,0.03455]
[1759434908359,1.54224489,120630.0,120620.0,0.03455]
[1759434908960,1.54224489,120630.0,120620.0,0.1173977]
[1759434909351,0.44368867,120650.0,120640.0,0.02109]
[1759434909656,1.19588867,120650.0,120640.0,0.03455]
[1759434910760,1.19588867,120650.0,120640.0,0.117384]
[1759434911166,0.082834,120640.0,120630.0,0.01346]
[1759434911356,0.78995799,120640.0,120630.0,0.1173909]
[1759434911558,1.196194,120640.0,120630.0,0.1173909]
[1759434911758,1.196234,120640.0,120630.0,0.1173909]
[1759434912158,1.11336,120640.0,120630.0,0.1173909]
[1759434912459,1.54251799,120640.0,120630.0,0.1173909]
[1759434912654,1.54251799,120640.0,120630.0,0.0963009]
[1759434913056,1.54251799,120640.0,120630.0,0.1173909]
[1759434913262,1.196194,120640.0,120630.0,0.1173909]
[1759434913864,1.54251799,120640.0,120630.0,0.1173909]
[1759434914178,0.0828409,120630.0,120620.0,0.0963066]
[1759434914371,0.78996489,120630.0,120620.0,0.0963066]
[1759434914869,0.78996489,120630.0,120620.0,0.1173966]
[1759434915669,0.78996489,120630.0,120620.0,0.0963066]
[1759434915864,0.78996489,120630.0,120620.0,0.0828466]
[1759434916463,0.78996489,120630.0,120620.0,0.0963066]
[1759434916664,0.78996489,120630.0,120620.0,0.1173966]
[1759434916964,0.78996489,120630.0,120620.0,0.0963066]
[1759434917368,1.54268489,120630.0,120620.0,0.0963066]
[1759434917568,1.1963609,120630.0,120620.0,0.0963066]
[1759434917863,1.54268489,120630.0,120620.0,0.0963066]
[1759434918167,0.0828477,120620.0,120610.0,0.0923099]
[1759434918363,0.4436467,120630.0,120620.0,0.1173977]
[1759434918577,1.1963609,120630.0,120620.0,0.1173977]
[1759434919660,0.8095513,120640.0,120630.0,0.0828409]
[1759434919661,0.4436393,120640.0,120630.0,0.0828409]
[1759434919862,1.1965193,120640.0,120630.0,0.1173909]
[1759434920169,1.1965193,120640.0,120630.0,0.03455]
[1759434920563,1.1965193,120640.0,120630.0,0.1173909]
[1759434921757,1.1966393,120640.0,120630.0,0.1173909]
[1759434923470,0.0828409,120630.0,120620.0,0.0963013]
[1759434923772,0.3608,120630.0,120620.0,0.1173913]
[1759434924069,1.1966409,120630.0,120620.0,0.1173913]
[1759434924566,0.4436409,120630.0,120620.0,0.1173913]
[1759434924770,1.1966009,120630.0,120620.0,0.1173913]
[1759434925263,0.4436409,120630.0,120620.0,0.1173913]
[1759434925472,0.8357609,120630.0,120620.0,0.1173913]
[1759434926164,0.3608,120640.0,120630.0,0.0828409]
[1759434926469,1.1965166,120640.0,120630.0,0.03467]
[1759434926866,1.1965166,120640.0,120630.0,0.1175109]
[1759434927068,1.13581384,120640.0,120630.0,0.46383489]
[1759434927372,0.36086117,120650.0,120640.0,0.117504]
[1759434927664,1.21874445,120650.0,120640.0,0.03467]
[1759434927877,1.56506844,120650.0,120630.0,0.0961259]
[1759434928062,0.3608,120640.0,120630.0,0.1175059]
[1759434928864,1.11396,120640.0,120630.0,0.1175059]
[1759434929065,1.13610419,120640.0,120630.0,0.1175059]
[1759434929566,1.11396,120640.0,120630.0,0.1175059]
[1759434930069,1.11408,120640.0,120630.0,0.1175059]
[1759434930269,0.75328,120640.0,120630.0,0.43616375]
[1759434930671,0.77533131,120640.0,120630.0,0.43616375]
[1759434930970,0.77533131,120640.0,120630.0,0.83616375]
[1759434931376,0.77549131,120640.0,120630.0,1.19696375]
[1759434933079,0.02205131,120640.0,120630.0,1.19696375]
[1759434933278,0.77537131,120640.0,120630.0,1.19696375]
[1759434933474,0.75332,120640.0,120630.0,1.19696375]
[1759434933772,0.77534464,120640.0,120630.0,1.19696375]
[1759434933970,0.02202464,120640.0,120630.0,0.8783059]
[1759434934177,0.70148249,120640.0,120630.0,0.0961259]
[1759434934374,0.02202464,120640.0,120630.0,0.1175059]
[1759434934575,0.34068249,120640.0,120630.0,0.1175059]
[1759434935674,0.30519119,120640.0,120630.0,0.1175059]
[1759434935869,0.38802519,120640.0,120630.0,0.1175059]
[1759434936079,0.38802519,120640.0,120630.0,0.0961309]
[1759434936279,0.74882519,120640.0,120630.0,0.0961309]
[1759434936779,0.74882519,120640.0,120630.0,0.1175109]
[1759434937781,1.50210519,120640.0,120630.0,0.0961309]
[1759434942083,1.51557185,120640.0,120630.0,0.0961309]
[1759434942287,0.0828438,120630.0,120620.0,0.096137]
[1759434942586,0.76230165,120630.0,120620.0,0.096137]
[1759434942979,0.0828477,120620.0,120610.0,0.1136911]
[1759434943284,1.15458555,120620.0,120610.0,0.0923111]
[1759434943586,1.51538555,120620.0,120610.0,0.00946]
[1759434943987,0.4436477,120620.0,120610.0,0.1136946]
[1759434944185,1.51546555,120620.0,120610.0,0.1136946]